[Event "Titled Tuesday Blitz October 18 Late 2022"]
[White "Zierk, Steven"]
[Black "Thomforde-Toates, Noah"]
[WhiteFideId "2034255"]
[BlackFideId "30951992"]
[WhiteElo "2494"]
[BlackElo "2661"]
[Result "0-1"]
[Round "07"]
[TimeControl "180+1"]
[Date "2022.10.18"]
[WhiteClock "0:00:18"]
[BlackClock "0:00:11"]

1. e4 {[%clk 0:03:00]}  c5 {[%clk 0:02:59]} 2. Nf3 {[%clk 0:03:00]}  g6 {[%clk 0:02:59]} 3. d4 {[%clk 0:02:57]}  cxd4 {[%clk 0:02:59]} 4. Nxd4 {[%clk 0:02:58]}  Bg7 {[%clk 0:03:00]} 5. c4 {[%clk 0:02:58]}  Nc6 {[%clk 0:03:00]} 6. Be3 {[%clk 0:02:58]}  Nf6 {[%clk 0:03:00]} 7. Nc3 {[%clk 0:02:57]}  Ng4 {[%clk 0:03:00]} 8. Qxg4 {[%clk 0:02:57]}  Nxd4 {[%clk 0:03:00]} 9. Qd1 {[%clk 0:02:57]}  e5 {[%clk 0:03:00]} 10. Bd3 {[%clk 0:02:56]}  O-O {[%clk 0:03:00]} 11. O-O {[%clk 0:02:56]}  d6 {[%clk 0:02:59]} 12. Ne2 {[%clk 0:02:49]}  Be6 {[%clk 0:02:55]} 13. Nxd4 {[%clk 0:02:47]}  exd4 {[%clk 0:02:55]} 14. Bd2 {[%clk 0:02:48]}  Rc8 {[%clk 0:02:54]} 15. Qe2 {[%clk 0:02:44]}  Re8 {[%clk 0:02:40]} 16. Rac1 {[%clk 0:02:34]}  Qh4 {[%clk 0:02:23]} 17. f4 {[%clk 0:02:28]}  f5 {[%clk 0:02:21]} 18. Qf3 {[%clk 0:02:23]}  fxe4 {[%clk 0:02:17]} 19. Bxe4 {[%clk 0:02:23]}  Bg4 {[%clk 0:02:14]} 20. Qd3 {[%clk 0:02:18]}  Kh8 {[%clk 0:02:10]} 21. b4 {[%clk 0:01:55]}  Qh5 {[%clk 0:02:05]} 22. Rfe1 {[%clk 0:01:49]}  b6 {[%clk 0:01:46]} 23. h3 {[%clk 0:01:23]}  Bd7 {[%clk 0:01:37]} 24. Qa3 {[%clk 0:01:14]}  Qh4 {[%clk 0:00:51]} 25. Re2 {[%clk 0:00:58]}  d5 {[%clk 0:00:24]} 26. cxd5 {[%clk 0:00:53]}  Rxc1+ {[%clk 0:00:25]} 27. Bxc1 {[%clk 0:00:49]}  Bb5 {[%clk 0:00:23]} 28. g3 {[%clk 0:00:40]}  Qxh3 {[%clk 0:00:12]} 29. Rh2 {[%clk 0:00:18]}  Qf1# {[%clk 0:00:11]} 0-1


[Site "https://www.chess.com"]

[Event "Titled Tuesday Blitz October 18 Late 2022"]
[White "Zverev, Lev"]
[Black "Bluebaum, Matthias"]
[WhiteFideId "24250775"]
[BlackFideId "24651516"]
[WhiteElo "2207"]
[BlackElo "2633"]
[Result "0-1"]
[Round "07"]
[TimeControl "180+1"]
[Date "2022.10.18"]
[WhiteClock "0:00:28"]
[BlackClock "0:01:05"]

1. e4 {[%clk 0:03:00]}  e6 {[%clk 0:03:00]} 2. d4 {[%clk 0:03:00]}  d5 {[%clk 0:03:00]} 3. Nc3 {[%clk 0:03:00]}  Nf6 {[%clk 0:03:00]} 4. e5 {[%clk 0:02:59]}  Nfd7 {[%clk 0:03:00]} 5. f4 {[%clk 0:02:59]}  c5 {[%clk 0:03:01]} 6. Nf3 {[%clk 0:02:59]}  Nc6 {[%clk 0:03:02]} 7. Be3 {[%clk 0:02:58]}  a6 {[%clk 0:03:03]} 8. Qd2 {[%clk 0:02:58]}  b5 {[%clk 0:03:03]} 9. a3 {[%clk 0:02:58]}  Qa5 {[%clk 0:03:03]} 10. dxc5 {[%clk 0:02:56]}  Bxc5 {[%clk 0:03:04]} 11. Bxc5 {[%clk 0:02:52]}  Nxc5 {[%clk 0:03:05]} 12. Nd4 {[%clk 0:02:47]}  Nxd4 {[%clk 0:03:05]} 13. Qxd4 {[%clk 0:02:48]}  Ne4 {[%clk 0:03:05]} 14. b4 {[%clk 0:02:44]}  Qc7 {[%clk 0:03:06]} 15. Nxe4 {[%clk 0:02:37]}  dxe4 {[%clk 0:03:07]} 16. Qxe4 {[%clk 0:02:35]}  Bb7 {[%clk 0:03:06]} 17. Qe3 {[%clk 0:02:33]}  Qxc2 {[%clk 0:02:53]} 18. Rc1 {[%clk 0:02:32]}  Qa2 {[%clk 0:02:39]} 19. Be2 {[%clk 0:02:28]}  O-O {[%clk 0:02:33]} 20. O-O {[%clk 0:02:26]}  Rac8 {[%clk 0:02:33]} 21. Ra1 {[%clk 0:01:57]}  Qb2 {[%clk 0:02:32]} 22. Rab1 {[%clk 0:01:56]}  Qc3 {[%clk 0:02:26]} 23. Bd3 {[%clk 0:01:51]}  Rfd8 {[%clk 0:02:22]} 24. Rfd1 {[%clk 0:01:50]}  g6 {[%clk 0:02:16]} 25. f5 {[%clk 0:01:44]}  exf5 {[%clk 0:02:09]} 26. Qe2 {[%clk 0:01:28]}  Re8 {[%clk 0:02:04]} 27. Re1 {[%clk 0:01:24]}  Rcd8 {[%clk 0:01:54]} 28. Rbd1 {[%clk 0:01:22]}  Rd5 {[%clk 0:01:50]} 29. Qf3 {[%clk 0:01:10]}  Qd4+ {[%clk 0:01:24]} 30. Kh1 {[%clk 0:01:04]}  Rdxe5 {[%clk 0:01:20]} 31. Rxe5 {[%clk 0:01:04]}  Qxe5 {[%clk 0:01:21]} 32. Qf2 {[%clk 0:00:59]}  Qc3 {[%clk 0:01:18]} 33. h4 {[%clk 0:00:56]}  Qxa3 {[%clk 0:01:14]} 34. h5 {[%clk 0:00:52]}  Qxb4 {[%clk 0:01:13]} 35. hxg6 {[%clk 0:00:51]}  hxg6 {[%clk 0:01:14]} 36. Kh2 {[%clk 0:00:39]}  Qg4 {[%clk 0:01:07]} 37. Rc1 {[%clk 0:00:39]}  Bxg2 {[%clk 0:01:05]} 38. Qxg2 {[%clk 0:00:28]}  Qf4+ {[%clk 0:01:05]} 39. Qg3 {[%clk 0:00:28]}  Qxc1 {[%clk 0:01:05]} 40. Bxf5 {[%clk 0:00:29]}  Re2+ {[%clk 0:01:04]} 41. Kh3 {[%clk 0:00:29]}  Qh6+ {[%clk 0:01:04]} 42. Kg4 {[%clk 0:00:28]}  Qh5+ {[%clk 0:01:04]} 43. Kf4 {[%clk 0:00:28]}  Qxf5# {[%clk 0:01:05]} 0-1


[Site "https://www.chess.com"]

[Event "Titled Tuesday Blitz October 18 Late 2022"]
[White "miragha_yev"]
[Black "Paravyan, David"]
[BlackFideId "4194985"]
[WhiteElo "2767"]
[BlackElo "2555"]
[Result "1/2-1/2"]
[Round "07"]
[TimeControl "180+1"]
[Date "2022.10.18"]
[WhiteClock "0:00:23"]
[BlackClock "0:01:08"]

1. e4 {[%clk 0:02:53]}  e5 {[%clk 0:02:59]} 2. Nf3 {[%clk 0:02:53]}  Nf6 {[%clk 0:02:59]} 3. Nxe5 {[%clk 0:02:47]}  d6 {[%clk 0:02:57]} 4. Nf3 {[%clk 0:02:48]}  Nxe4 {[%clk 0:02:52]} 5. Qe2 {[%clk 0:02:48]}  Qe7 {[%clk 0:02:49]} 6. d3 {[%clk 0:02:48]}  Nf6 {[%clk 0:02:48]} 7. Qxe7+ {[%clk 0:02:47]}  Bxe7 {[%clk 0:02:49]} 8. Nc3 {[%clk 0:02:47]}  O-O {[%clk 0:02:45]} 9. Be2 {[%clk 0:02:47]}  Re8 {[%clk 0:02:24]} 10. O-O {[%clk 0:02:44]}  Bd8 {[%clk 0:02:23]} 11. Re1 {[%clk 0:02:41]}  Nc6 {[%clk 0:02:23]} 12. Bd2 {[%clk 0:02:40]}  Bd7 {[%clk 0:02:20]} 13. h3 {[%clk 0:02:38]}  h6 {[%clk 0:02:20]} 14. a3 {[%clk 0:02:36]}  a6 {[%clk 0:02:20]} 15. Bf1 {[%clk 0:02:34]}  Ne7 {[%clk 0:02:18]} 16. Ne4 {[%clk 0:02:31]}  Nxe4 {[%clk 0:02:17]} 17. Rxe4 {[%clk 0:02:32]}  Bc6 {[%clk 0:02:17]} 18. Re3 {[%clk 0:02:30]}  Bxf3 {[%clk 0:02:15]} 19. Rxf3 {[%clk 0:02:30]}  Nc6 {[%clk 0:02:16]} 20. Bc3 {[%clk 0:02:26]}  Ne5 {[%clk 0:02:09]} 21. Re3 {[%clk 0:02:22]}  Bg5 {[%clk 0:02:09]} 22. Re2 {[%clk 0:02:17]}  Nd7 {[%clk 0:02:05]} 23. Rxe8+ {[%clk 0:02:15]}  Rxe8 {[%clk 0:02:04]} 24. Re1 {[%clk 0:02:16]}  Rxe1 {[%clk 0:01:58]} 25. Bxe1 {[%clk 0:02:17]}  Bc1 {[%clk 0:01:58]} 26. Bc3 {[%clk 0:02:16]}  Nb6 {[%clk 0:01:59]} 27. Ba5 {[%clk 0:01:51]}  Bxb2 {[%clk 0:01:54]} 28. Bxb6 {[%clk 0:01:51]}  cxb6 {[%clk 0:01:53]} 29. a4 {[%clk 0:01:52]}  b5 {[%clk 0:01:41]} 30. axb5 {[%clk 0:01:45]}  a5 {[%clk 0:01:42]} 31. g3 {[%clk 0:01:14]}  a4 {[%clk 0:01:41]} 32. Bg2 {[%clk 0:01:10]}  a3 {[%clk 0:01:41]} 33. Bd5 {[%clk 0:01:07]}  Kf8 {[%clk 0:01:42]} 34. Kf1 {[%clk 0:01:05]}  Ke7 {[%clk 0:01:43]} 35. Ke2 {[%clk 0:01:03]}  Kf6 {[%clk 0:01:43]} 36. f4 {[%clk 0:01:01]}  g5 {[%clk 0:01:42]} 37. Kd2 {[%clk 0:00:59]}  Bd4 {[%clk 0:01:28]} 38. c3 {[%clk 0:00:54]}  Bf2 {[%clk 0:01:23]} 39. fxg5+ {[%clk 0:00:50]}  Kxg5 {[%clk 0:01:21]} 40. Bxf7 {[%clk 0:00:47]}  Bxg3 {[%clk 0:01:20]} 41. Kc2 {[%clk 0:00:44]}  Kf6 {[%clk 0:01:18]} 42. Bd5 {[%clk 0:00:41]}  b6 {[%clk 0:01:15]} 43. Kb3 {[%clk 0:00:42]}  Be1 {[%clk 0:01:14]} 44. c4 {[%clk 0:00:37]}  Bb4 {[%clk 0:01:11]} 45. h4 {[%clk 0:00:32]}  Ke5 {[%clk 0:01:08]} 46. h5 {[%clk 0:00:29]}  Kd4 {[%clk 0:01:08]} 47. Be4 {[%clk 0:00:29]}  Bc5 {[%clk 0:01:08]} 48. Bg6 {[%clk 0:00:27]}  Ke3 {[%clk 0:01:05]} 49. Be4 {[%clk 0:00:27]}  Kd2 {[%clk 0:01:05]} 50. Bg6 {[%clk 0:00:26]}  Kc1 {[%clk 0:01:06]} 51. Ka2 {[%clk 0:00:27]}  Kc2 {[%clk 0:01:06]} 52. d4+ {[%clk 0:00:26]}  Kc3 {[%clk 0:01:05]} 53. dxc5 {[%clk 0:00:27]}  dxc5 {[%clk 0:01:06]} 54. Bf7 {[%clk 0:00:27]}  Kb4 {[%clk 0:01:06]} 55. Be6 {[%clk 0:00:26]}  Ka4 {[%clk 0:01:06]} 56. Bg4 {[%clk 0:00:24]}  Kb4 {[%clk 0:01:06]} 57. Be2 {[%clk 0:00:24]}  Ka4 {[%clk 0:01:06]} 58. Bf1 {[%clk 0:00:24]}  Kb4 {[%clk 0:01:07]} 59. Kb1 {[%clk 0:00:24]}  Kb3 {[%clk 0:01:07]} 60. Be2 {[%clk 0:00:24]}  Kc3 {[%clk 0:01:07]} 61. Bf1 {[%clk 0:00:21]}  Kb3 {[%clk 0:01:07]} 62. Ka1 {[%clk 0:00:21]}  Kc3 {[%clk 0:01:07]} 63. Ka2 {[%clk 0:00:21]}  Kb4 {[%clk 0:01:07]} 64. Be2 {[%clk 0:00:21]}  Ka4 {[%clk 0:01:07]} 65. Bd1+ {[%clk 0:00:21]}  Kb4 {[%clk 0:01:08]} 66. Bb3 {[%clk 0:00:22]}  Ka5 {[%clk 0:01:08]} 67. Kxa3 {[%clk 0:00:23]} 1/2-1/2


[Site "https://www.chess.com"]

[Event "Titled Tuesday Blitz October 18 Late 2022"]
[White "Arkell, Keith C"]
[Black "D`Arruda, Ricardo D."]
[WhiteFideId "400270"]
[BlackFideId "100692"]
[WhiteElo "2336"]
[BlackElo "2392"]
[Result "1-0"]
[Round "08"]
[TimeControl "180+1"]
[Date "2022.10.19"]
[WhiteClock "0:01:01"]
[BlackClock "0:00:06"]

1. d4 {[%clk 0:03:00]}  Nf6 {[%clk 0:02:58]} 2. Nf3 {[%clk 0:03:01]}  g6 {[%clk 0:02:57]} 3. g3 {[%clk 0:03:01]}  Bg7 {[%clk 0:02:56]} 4. c4 {[%clk 0:03:01]}  O-O {[%clk 0:02:56]} 5. Nc3 {[%clk 0:03:02]}  d6 {[%clk 0:02:56]} 6. Bg2 {[%clk 0:03:03]}  Nbd7 {[%clk 0:02:54]} 7. d5 {[%clk 0:03:03]}  e5 {[%clk 0:02:39]} 8. dxe6 {[%clk 0:03:03]}  fxe6 {[%clk 0:02:39]} 9. O-O {[%clk 0:03:03]}  e5 {[%clk 0:02:38]} 10. Bg5 {[%clk 0:03:03]}  h6 {[%clk 0:02:35]} 11. Be3 {[%clk 0:03:03]}  Nb6 {[%clk 0:02:24]} 12. c5 {[%clk 0:03:02]}  Nc4 {[%clk 0:02:15]} 13. Bc1 {[%clk 0:02:49]}  e4 {[%clk 0:01:46]} 14. Nxe4 {[%clk 0:02:47]}  Nxe4 {[%clk 0:01:38]} 15. Qd5+ {[%clk 0:02:46]}  Kh7 {[%clk 0:01:38]} 16. Qxc4 {[%clk 0:02:39]}  Nxc5 {[%clk 0:01:35]} 17. Be3 {[%clk 0:02:36]}  Be6 {[%clk 0:01:32]} 18. Qb4 {[%clk 0:02:32]}  a5 {[%clk 0:01:31]} 19. Qa3 {[%clk 0:02:31]}  Qe7 {[%clk 0:01:20]} 20. Nd4 {[%clk 0:02:28]}  Bf7 {[%clk 0:01:11]} 21. Rac1 {[%clk 0:02:25]}  c6 {[%clk 0:01:10]} 22. Rfd1 {[%clk 0:02:23]}  Rfe8 {[%clk 0:01:10]} 23. h3 {[%clk 0:02:21]}  Ne4 {[%clk 0:01:03]} 24. Bf4 {[%clk 0:02:16]}  d5 {[%clk 0:01:01]} 25. Qxe7 {[%clk 0:02:10]}  Rxe7 {[%clk 0:01:02]} 26. Bxe4 {[%clk 0:02:04]}  Rxe4 {[%clk 0:01:01]} 27. Be3 {[%clk 0:02:04]}  Rae8 {[%clk 0:00:59]} 28. Rd2 {[%clk 0:02:03]}  Bxd4 {[%clk 0:00:55]} 29. Rxd4 {[%clk 0:02:01]}  Rxd4 {[%clk 0:00:55]} 30. Bxd4 {[%clk 0:02:01]}  Rxe2 {[%clk 0:00:56]} 31. a4 {[%clk 0:01:59]}  Be6 {[%clk 0:00:53]} 32. g4 {[%clk 0:01:58]}  h5 {[%clk 0:00:52]} 33. gxh5 {[%clk 0:01:58]}  gxh5 {[%clk 0:00:53]} 34. Kg2 {[%clk 0:01:56]}  Bf5 {[%clk 0:00:51]} 35. Kg3 {[%clk 0:01:54]}  Re4 {[%clk 0:00:47]} 36. Rd1 {[%clk 0:01:52]}  h4+ {[%clk 0:00:47]} 37. Kg2 {[%clk 0:01:52]}  Re2 {[%clk 0:00:47]} 38. Kf3 {[%clk 0:01:45]}  Rc2 {[%clk 0:00:46]} 39. Kf4 {[%clk 0:01:43]}  Bg6 {[%clk 0:00:38]} 40. Kg5 {[%clk 0:01:42]}  Rc4 {[%clk 0:00:34]} 41. Bf6 {[%clk 0:01:37]}  Rxa4 {[%clk 0:00:31]} 42. f3 {[%clk 0:01:38]}  Bf7 {[%clk 0:00:13]} 43. Re1 {[%clk 0:01:37]}  Kg8 {[%clk 0:00:13]} 44. Kf5 {[%clk 0:01:33]}  Rb4 {[%clk 0:00:11]} 45. Re7 {[%clk 0:01:29]}  d4 {[%clk 0:00:09]} 46. Rd7 {[%clk 0:01:27]}  Rb5+ {[%clk 0:00:09]} 47. Kf4 {[%clk 0:01:27]}  Be6 {[%clk 0:00:09]} 48. Rd8+ {[%clk 0:01:25]}  Kf7 {[%clk 0:00:08]} 49. Bxd4 {[%clk 0:01:24]}  Rf5+ {[%clk 0:00:08]} 50. Ke3 {[%clk 0:01:23]}  Bd5 {[%clk 0:00:08]} 51. f4 {[%clk 0:01:23]}  Rh5 {[%clk 0:00:07]} 52. Ra8 {[%clk 0:01:20]}  Rh6 {[%clk 0:00:06]} 53. Rxa5 {[%clk 0:01:19]}  Re6+ {[%clk 0:00:06]} 54. Kd3 {[%clk 0:01:19]}  Bg2 {[%clk 0:00:06]} 55. Rh5 {[%clk 0:01:18]}  Bxh3 {[%clk 0:00:04]} 56. Rxh4 {[%clk 0:01:18]}  Bf5+ {[%clk 0:00:05]} 57. Kc3 {[%clk 0:01:17]}  Re2 {[%clk 0:00:04]} 58. Rh5 {[%clk 0:01:17]}  Ke6 {[%clk 0:00:04]} 59. Rh6+ {[%clk 0:01:17]}  Kd5 {[%clk 0:00:04]} 60. Rh5 {[%clk 0:01:17]}  Rc2+ {[%clk 0:00:04]} 61. Kb3 {[%clk 0:01:17]}  Kxd4 {[%clk 0:00:04]} 62. Rxf5 {[%clk 0:01:18]}  Rf2 {[%clk 0:00:04]} 63. Rf7 {[%clk 0:01:16]}  b5 {[%clk 0:00:04]} 64. Rd7+ {[%clk 0:01:13]}  Kc5 {[%clk 0:00:04]} 65. Rf7 {[%clk 0:01:13]}  Rf3+ {[%clk 0:00:05]} 66. Ka2 {[%clk 0:01:11]}  Kb4 {[%clk 0:00:05]} 67. f5 {[%clk 0:01:11]}  c5 {[%clk 0:00:06]} 68. f6 {[%clk 0:01:12]}  c4 {[%clk 0:00:07]} 69. Rf8 {[%clk 0:01:12]}  Rf2 {[%clk 0:00:08]} 70. Kb1 {[%clk 0:01:12]}  Kb3 {[%clk 0:00:07]} 71. Kc1 {[%clk 0:01:12]}  Rc2+ {[%clk 0:00:07]} 72. Kd1 {[%clk 0:01:13]}  Rxb2 {[%clk 0:00:08]} 73. Ke1 {[%clk 0:01:13]}  Rb1+ {[%clk 0:00:05]} 74. Ke2 {[%clk 0:01:13]}  Rb2+ {[%clk 0:00:06]} 75. Ke3 {[%clk 0:01:12]}  Rb1 {[%clk 0:00:06]} 76. Rb8 {[%clk 0:01:08]}  Rf1 {[%clk 0:00:06]} 77. Rxb5+ {[%clk 0:01:07]}  Kc2 {[%clk 0:00:06]} 78. Rb6 {[%clk 0:01:05]}  c3 {[%clk 0:00:06]} 79. Rd6 {[%clk 0:01:03]}  Kc1 {[%clk 0:00:06]} 80. Ke2 {[%clk 0:01:01]}  c2 {[%clk 0:00:06]} 81. Kxf1 {[%clk 0:01:01]} 1-0


[Site "https://www.chess.com"]

[Event "Titled Tuesday Blitz October 18 Late 2022"]
[White "Arnold, Ken"]
[Black "Almedina Ortiz, Edgardo J."]
[WhiteFideId "2056836"]
[BlackFideId "3100197"]
[WhiteElo "2316"]
[BlackElo "2217"]
[Result "1-0"]
[Round "08"]
[TimeControl "180+1"]
[Date "2022.10.19"]
[WhiteClock "0:00:30"]
[BlackClock "0:00:01"]

1. d4 {[%clk 0:03:00]}  Nf6 {[%clk 0:02:59]} 2. c4 {[%clk 0:03:01]}  e6 {[%clk 0:02:59]} 3. Nf3 {[%clk 0:03:01]}  b6 {[%clk 0:02:58]} 4. g3 {[%clk 0:03:01]}  Bb7 {[%clk 0:02:59]} 5. Bg2 {[%clk 0:03:01]}  Be7 {[%clk 0:02:59]} 6. O-O {[%clk 0:03:02]}  O-O {[%clk 0:03:00]} 7. Nc3 {[%clk 0:03:02]}  Ne4 {[%clk 0:02:59]} 8. Nxe4 {[%clk 0:02:54]}  Bxe4 {[%clk 0:03:00]} 9. b3 {[%clk 0:02:53]}  d6 {[%clk 0:02:58]} 10. Bb2 {[%clk 0:02:53]}  Nd7 {[%clk 0:02:57]} 11. Qd2 {[%clk 0:02:51]}  f5 {[%clk 0:02:50]} 12. Rac1 {[%clk 0:02:46]}  Bf6 {[%clk 0:02:47]} 13. Rfd1 {[%clk 0:02:45]}  Qe7 {[%clk 0:02:29]} 14. h4 {[%clk 0:02:43]}  Rae8 {[%clk 0:02:20]} 15. Ng5 {[%clk 0:02:38]}  Bxg2 {[%clk 0:02:18]} 16. Kxg2 {[%clk 0:02:38]}  Bxg5 {[%clk 0:02:03]} 17. hxg5 {[%clk 0:02:34]}  e5 {[%clk 0:02:03]} 18. dxe5 {[%clk 0:02:28]}  Nxe5 {[%clk 0:02:03]} 19. Qd5+ {[%clk 0:02:15]}  Qf7 {[%clk 0:01:40]} 20. e3 {[%clk 0:02:03]}  Ng4 {[%clk 0:01:30]} 21. Qxf7+ {[%clk 0:02:00]}  Rxf7 {[%clk 0:01:30]} 22. b4 {[%clk 0:01:54]}  g6 {[%clk 0:01:15]} 23. c5 {[%clk 0:01:51]}  dxc5 {[%clk 0:01:12]} 24. bxc5 {[%clk 0:01:51]}  h5 {[%clk 0:01:03]} 25. gxh6 {[%clk 0:01:47]}  Kh7 {[%clk 0:01:03]} 26. c6 {[%clk 0:01:37]}  a5 {[%clk 0:00:57]} 27. Rd7 {[%clk 0:01:36]}  Ree7 {[%clk 0:00:56]} 28. Rcd1 {[%clk 0:01:34]}  Nxh6 {[%clk 0:00:43]} 29. Bf6 {[%clk 0:01:13]}  Re6 {[%clk 0:00:17]} 30. R1d6 {[%clk 0:00:51]}  Rxd6 {[%clk 0:00:11]} 31. Rxd6 {[%clk 0:00:39]}  cxd6 {[%clk 0:00:11]} 32. Bd8 {[%clk 0:00:38]}  b5 {[%clk 0:00:07]} 33. c7 {[%clk 0:00:36]}  Rxc7 {[%clk 0:00:06]} 34. Bxc7 {[%clk 0:00:37]}  a4 {[%clk 0:00:05]} 35. Bxd6 {[%clk 0:00:36]}  Nf7 {[%clk 0:00:05]} 36. Bc5 {[%clk 0:00:32]}  Ne5 {[%clk 0:00:04]} 37. a3 {[%clk 0:00:31]}  Kg8 {[%clk 0:00:02]} 38. f4 {[%clk 0:00:30]}  Nd3 {[%clk 0:00:01]} 39. Bd4 {[%clk 0:00:31]}  b4 {[%clk 0:00:01]} 40. axb4 {[%clk 0:00:30]}  Nxb4 {[%clk 0:00:01]} 41. Kf3 {[%clk 0:00:30]} 1-0


[Site "https://www.chess.com"]

[Event "Titled Tuesday Blitz October 18 Late 2022"]
[White "Ballester Llagaria, Luis Eduardo"]
[Black "Goncalves, Davi Sulzbacher"]
[WhiteFideId "2297620"]
[BlackFideId "2154510"]
[WhiteElo "2344"]
[BlackElo "2182"]
[Result "1-0"]
[Round "08"]
[TimeControl "180+1"]
[Date "2022.10.19"]
[WhiteClock "0:00:31"]
[BlackClock "0:00:12"]

1. e4 {[%clk 0:03:00]}  c5 {[%clk 0:02:55]} 2. Nc3 {[%clk 0:03:00]}  d6 {[%clk 0:02:53]} 3. Nge2 {[%clk 0:02:58]}  Nf6 {[%clk 0:02:53]} 4. d4 {[%clk 0:02:58]}  cxd4 {[%clk 0:02:54]} 5. Nxd4 {[%clk 0:02:59]}  g6 {[%clk 0:02:54]} 6. Be3 {[%clk 0:02:59]}  Bg7 {[%clk 0:02:55]} 7. f3 {[%clk 0:03:00]}  O-O {[%clk 0:02:55]} 8. Qd2 {[%clk 0:03:00]}  Nc6 {[%clk 0:02:54]} 9. O-O-O {[%clk 0:03:01]}  Bd7 {[%clk 0:02:52]} 10. g4 {[%clk 0:02:56]}  Ne5 {[%clk 0:02:45]} 11. h4 {[%clk 0:02:51]}  h5 {[%clk 0:02:32]} 12. gxh5 {[%clk 0:02:44]}  Nxh5 {[%clk 0:02:31]} 13. Rg1 {[%clk 0:02:44]}  Rc8 {[%clk 0:02:30]} 14. Be2 {[%clk 0:02:30]}  Nc4 {[%clk 0:02:13]} 15. Bxc4 {[%clk 0:02:29]}  Rxc4 {[%clk 0:02:14]} 16. f4 {[%clk 0:02:20]}  Qa5 {[%clk 0:02:07]} 17. f5 {[%clk 0:02:15]}  Rxc3 {[%clk 0:01:54]} 18. Qxc3 {[%clk 0:02:12]}  Qxc3 {[%clk 0:01:52]} 19. bxc3 {[%clk 0:02:13]}  gxf5 {[%clk 0:01:51]} 20. Nxf5 {[%clk 0:02:07]}  Bxf5 {[%clk 0:01:50]} 21. exf5 {[%clk 0:02:08]}  Kh7 {[%clk 0:01:43]} 22. Rg5 {[%clk 0:01:59]}  Nf6 {[%clk 0:01:40]} 23. Kb2 {[%clk 0:01:46]}  Rc8 {[%clk 0:01:25]} 24. Bd4 {[%clk 0:01:34]}  Bh6 {[%clk 0:01:25]} 25. Re1 {[%clk 0:01:21]}  Nd5 {[%clk 0:01:00]} 26. Rh5 {[%clk 0:01:12]}  b5 {[%clk 0:00:42]} 27. f6 {[%clk 0:01:01]}  Nxf6 {[%clk 0:00:34]} 28. Bxf6 {[%clk 0:00:59]}  exf6 {[%clk 0:00:35]} 29. Rxb5 {[%clk 0:00:56]}  Bd2 {[%clk 0:00:34]} 30. Re7 {[%clk 0:00:47]}  Bxc3+ {[%clk 0:00:26]} 31. Kb3 {[%clk 0:00:47]}  a6 {[%clk 0:00:21]} 32. Rbb7 {[%clk 0:00:44]}  Be5 {[%clk 0:00:20]} 33. Rxf7+ {[%clk 0:00:42]}  Kg6 {[%clk 0:00:21]} 34. Rfc7 {[%clk 0:00:43]}  Rh8 {[%clk 0:00:20]} 35. Rb4 {[%clk 0:00:38]}  d5 {[%clk 0:00:19]} 36. Rc6 {[%clk 0:00:36]}  a5 {[%clk 0:00:18]} 37. Rb5 {[%clk 0:00:35]}  Rxh4 {[%clk 0:00:17]} 38. Rxd5 {[%clk 0:00:34]}  a4+ {[%clk 0:00:16]} 39. Ka3 {[%clk 0:00:32]}  Bc3 {[%clk 0:00:12]} 40. Rxc3 {[%clk 0:00:31]} 1-0


[Site "https://www.chess.com"]

[Event "Titled Tuesday Blitz October 18 Late 2022"]
[White "Barria Zuniga, Daniel"]
[Black "Fajdetic, Hrvoje"]
[WhiteFideId "3400816"]
[BlackFideId "14501945"]
[WhiteElo "2414"]
[BlackElo "2172"]
[Result "1/2-1/2"]
[Round "08"]
[TimeControl "180+1"]
[Date "2022.10.18"]
[WhiteClock "0:00:03"]
[BlackClock "0:00:06"]

1. d4 {[%clk 0:03:00]}  e6 {[%clk 0:02:52]} 2. c4 {[%clk 0:03:01]}  f5 {[%clk 0:02:49]} 3. g3 {[%clk 0:02:59]}  Nf6 {[%clk 0:02:49]} 4. Bg2 {[%clk 0:02:59]}  Be7 {[%clk 0:02:49]} 5. Nh3 {[%clk 0:02:49]}  O-O {[%clk 0:02:49]} 6. O-O {[%clk 0:02:48]}  d6 {[%clk 0:02:50]} 7. Nc3 {[%clk 0:02:47]}  e5 {[%clk 0:02:47]} 8. e3 {[%clk 0:02:46]}  c6 {[%clk 0:02:45]} 9. b4 {[%clk 0:02:45]}  Qe8 {[%clk 0:02:44]} 10. a4 {[%clk 0:02:44]}  h6 {[%clk 0:02:14]} 11. b5 {[%clk 0:02:42]}  a6 {[%clk 0:01:58]} 12. Ba3 {[%clk 0:02:36]}  axb5 {[%clk 0:01:57]} 13. axb5 {[%clk 0:02:37]}  g5 {[%clk 0:01:41]} 14. f4 {[%clk 0:02:13]}  exd4 {[%clk 0:01:07]} 15. Qxd4 {[%clk 0:02:02]}  Ng4 {[%clk 0:01:06]} 16. Bb2 {[%clk 0:01:10]}  Rxa1 {[%clk 0:01:03]} 17. Bxa1 {[%clk 0:01:09]}  Bf6 {[%clk 0:01:02]} 18. Qxd6 {[%clk 0:01:07]}  Qxe3+ {[%clk 0:01:01]} 19. Kh1 {[%clk 0:01:07]}  Bxc3 {[%clk 0:00:55]} 20. Bxc3 {[%clk 0:01:08]}  Qxc3 {[%clk 0:00:52]} 21. Qxb8 {[%clk 0:01:08]}  Ne3 {[%clk 0:00:44]} 22. Rg1 {[%clk 0:00:36]}  Nxg2 {[%clk 0:00:36]} 23. Rxg2 {[%clk 0:00:36]}  g4 {[%clk 0:00:22]} 24. Ng1 {[%clk 0:00:33]}  Be6 {[%clk 0:00:16]} 25. Qxb7 {[%clk 0:00:28]}  cxb5 {[%clk 0:00:11]} 26. Qxb5 {[%clk 0:00:17]}  Bxc4 {[%clk 0:00:10]} 27. Qc6 {[%clk 0:00:14]}  Qd3 {[%clk 0:00:04]} 28. Qg6+ {[%clk 0:00:13]}  Kh8 {[%clk 0:00:04]} 29. Qxh6+ {[%clk 0:00:13]}  Kg8 {[%clk 0:00:05]} 30. Qg6+ {[%clk 0:00:13]}  Kh8 {[%clk 0:00:05]} 31. Qh6+ {[%clk 0:00:02]}  Kg8 {[%clk 0:00:05]} 32. Qg6+ {[%clk 0:00:02]}  Kh8 {[%clk 0:00:06]} 33. h3 {[%clk 0:00:02]}  Bd5 {[%clk 0:00:05]} 34. Qh6+ {[%clk 0:00:02]}  Kg8 {[%clk 0:00:06]} 35. Qg6+ {[%clk 0:00:02]}  Kh8 {[%clk 0:00:06]} 36. Qh6+ {[%clk 0:00:02]}  Kg8 {[%clk 0:00:06]} 37. Qg6+ {[%clk 0:00:03]}  Kh8 {[%clk 0:00:06]} 1/2-1/2


[Site "https://www.chess.com"]